bitfinex/quotes_ETHUSD_20250420
["timestamp","ask_amount","ask_price","bid_price","bid_amount"]
[1745134492883,6.28978102,1589.9,1589.8,6.204]
[1745134494894,6.28957174,1590.0,1589.8,6.204]
[1745134496495,6.28908673,1590.1,1589.8,6.90668]
[1745134496802,12.57834945,1590.1,1589.8,6.90668]
[1745134497086,6.28970375,1589.9,1589.8,9.204]
[1745134497500,6.29049506,1589.7,1589.6,56.888]
[1745134497712,6.29049506,1589.7,1589.6,63.092]
[1745134497999,6.2894819,1590.0,1589.7,3.8228]
[1745134498363,0.7814,1590.2,1589.7,3.8228]
[1745134498591,6.28967697,1590.0,1589.7,3.8228]
[1745134498771,6.28964804,1590.0,1589.7,3.8228]
[1745134499396,6.28914434,1590.1,1589.7,5.77284124]
[1745134499577,6.28933615,1590.0,1589.7,3.8228]
[1745134500500,6.28914434,1590.1,1589.7,5.77282778]
[1745134500710,6.28914434,1590.1,1589.8,0.57728278]
[1745134501860,6.28932478,1590.0,1589.7,3.8228]
[1745134502768,6.28914434,1590.1,1589.7,5.70994839]
[1745134502967,6.28914434,1590.1,1589.7,7.65994803]
[1745134503200,6.28914434,1590.1,1589.7,7.65986682]
[1745134503402,6.28914434,1590.1,1589.7,5.77276234]
[1745134503964,6.28914434,1590.1,1589.7,7.65982963]
[1745134504165,6.28934776,1590.0,1589.7,10.17866487]
[1745134505499,6.28907758,1590.1,1589.7,12.06579969]
[1745134505675,6.28933518,1590.0,1589.7,10.17866487]
[1745134506767,6.28971131,1589.9,1589.7,10.17866487]
[1745134506967,6.28933518,1590.0,1589.7,10.17866487]
[1745134508509,6.28866358,1590.2,1589.9,3.0]
[1745134508803,6.28866358,1590.2,1590.0,6.194]
[1745134509872,6.06999998,1590.3,1590.2,0.7785]
[1745134510061,7.04197684,1590.3,1590.1,3.0]
[1745134510266,7.04197684,1590.3,1589.8,0.7785]
[1745134510267,6.28891264,1590.1,1589.8,0.7785]
[1745134510472,6.28891264,1590.1,1590.0,3.0]
[1745134510681,6.28930817,1590.0,1589.9,9.194]
[1745134511416,6.28991263,1589.9,1589.6,53.888]
[1745134511709,6.29014287,1589.8,1589.7,9.194]
[1745134511911,6.29014287,1589.8,1589.7,6.194]
[1745134512197,6.29014287,1589.8,1589.7,9.194]
[1745134512819,6.28991875,1589.9,1589.7,9.194]
[1745134513804,13.33274833,1590.0,1589.7,9.194]
[1745134514003,6.28952743,1590.0,1589.7,15.97323178]
[1745134514718,6.28906843,1590.1,1589.8,3.7742]
[1745134514883,13.1123367,1590.2,1589.8,5.72411735]
[1745134515284,6.28893119,1590.1,1589.8,3.7742]
[1745134515816,6.28965629,1590.0,1589.8,3.7742]
[1745134516185,6.28913477,1590.1,1589.8,3.7742]
[1745134516385,6.28913477,1590.1,1589.8,3.83709543]
[1745134516994,13.11230233,1590.2,1589.8,7.78252507]
[1745134517189,12.35870233,1590.2,1589.8,7.78252507]
[1745134517393,3.0,1590.1,1589.8,7.71962964]
[1745134517626,3.0,1590.1,1589.8,3.7742]
[1745134517627,9.28910979,1590.1,1589.8,3.7742]
[1745134517827,6.28951006,1590.0,1589.8,3.7742]
[1745134518592,6.29009938,1589.8,1589.7,6.66503178]
[1745134519130,6.28986533,1589.9,1589.7,9.66503178]
[1745134519492,13.36402597,1590.0,1589.7,9.66503178]
[1745134519724,6.28941719,1590.0,1589.8,3.0]
[1745134520023,6.28916269,1590.1,1589.8,3.8077]
[1745134520194,19.44612973,1590.2,1589.8,7.12570557]
[1745134520401,6.28897066,1590.1,1589.8,7.12570557]
[1745134520736,12.35871614,1590.2,1589.8,7.12561503]
[1745134521292,12.35871614,1590.2,1589.8,7.18850559]
[1745134521493,12.35871614,1590.2,1589.8,7.12561503]
[1745134521713,18.6475433,1590.2,1589.8,7.12561503]
[1745134522105,18.64756489,1590.2,1589.8,7.12561503]
[1745134522404,12.35871614,1590.2,1589.8,7.12561503]
[1745134522929,6.06999998,1590.2,1590.1,3.0]
[1745134523238,6.06999998,1590.2,1590.1,9.194]
[1745134524548,6.06999998,1590.2,1590.1,9.6631033]
[1745134525799,6.28815186,1590.3,1590.1,9.6631033]
[1745134526937,6.86859998,1590.5,1590.1,9.6631033]
[1745134527150,6.06999998,1590.5,1590.3,0.8248]
[1745134528429,6.06999998,1590.5,1590.4,3.0]
[1745134528630,6.06999998,1590.5,1590.3,0.8248]
[1745134530345,6.06999998,1590.5,1590.4,3.0]
[1745134530503,6.06999998,1590.5,1590.3,0.8248]
[1745134531843,0.35784405,1590.4,1590.3,0.8248]
[1745134532145,6.28772635,1590.4,1590.2,3.0]
[1745134532315,6.64127745,1590.4,1590.2,3.0]
[1745134532509,6.64127745,1590.4,1590.3,3.0]
[1745134532714,6.64127745,1590.4,1590.2,3.0]
[1745134532911,0.3535511,1590.4,1590.2,3.0]
[1745134533246,6.64146149,1590.4,1590.2,3.0]
[1745134533906,6.28851716,1590.2,1590.1,7.4726033]
[1745134534134,6.28838532,1590.3,1590.2,3.0]
[1745134534327,6.28851716,1590.2,1590.1,0.4691033]
[1745134534602,7.05851716,1590.2,1590.1,6.182]
[1745134534806,7.05851716,1590.2,1590.1,9.182]
[1745134535474,13.12851714,1590.2,1590.1,6.182]
[1745134537440,13.47850849,1590.2,1590.1,6.182]
[1745134540360,6.63850851,1590.2,1590.1,6.64565143]
[1745134541155,6.63850851,1590.2,1590.1,6.182]
[1745134543341,6.63850851,1590.2,1590.1,9.182]
[1745134543342,0.34999135,1590.2,1590.1,9.182]
[1745134543966,6.63850851,1590.2,1590.1,9.64616953]
[1745134545941,0.34999135,1590.2,1590.1,9.64616953]
[1745134546230,6.28838152,1590.3,1590.1,9.64616953]
[1745134546436,0.34754888,1590.2,1590.1,9.64616953]
[1745134546742,6.63606604,1590.2,1590.1,9.64616953]
[1745134548140,0.34754888,1590.2,1590.1,9.64616953]
[1745134548472,6.63606604,1590.2,1590.1,9.64616953]
[1745134549166,0.34754888,1590.2,1590.1,9.64616953]
[1745134549547,6.63606604,1590.2,1590.1,9.64616953]
[1745134549877,0.34754888,1590.2,1590.1,9.64616953]
[1745134550042,0.34754888,1590.2,1590.1,10.88390402]
[1745134550436,18.64597757,1590.4,1590.2,3.0]
[1745134550650,0.3198585,1590.3,1590.2,3.0]
[1745134550873,12.35795477,1590.4,1590.2,3.0]
[1745134551040,0.3198585,1590.3,1590.2,3.0]
[1745134551240,12.35795477,1590.4,1590.2,3.0]
[1745134551570,0.3198585,1590.3,1590.2,4.78731695]
[1745134551869,6.06999998,1590.8,1590.6,3.8227]
[1745134552042,6.06999998,1590.8,1590.7,9.183]
[1745134552439,6.3109879,1590.8,1590.7,9.183]
[1745134553279,12.59713323,1590.8,1590.7,9.183]
[1745134553770,6.3109879,1590.8,1590.7,9.183]
[1745134554875,12.59713323,1590.8,1590.7,9.65514754]
[1745134555044,6.52713325,1590.8,1590.7,9.65514754]
[1745134555445,6.52713325,1590.8,1590.7,9.183]
[1745134555644,0.24098792,1590.8,1590.7,10.18357]
[1745134555968,6.28596111,1590.9,1590.7,10.18357]
[1745134556173,0.24098792,1590.8,1590.7,10.18357]
[1745134556480,6.28596111,1590.9,1590.7,10.18357]
[1745134556683,0.24539293,1590.8,1590.7,10.65529358]
[1745134557077,6.28596111,1590.9,1590.7,10.65529358]
[1745134557247,0.24539293,1590.8,1590.7,10.65529358]
[1745134557448,6.28596111,1590.9,1590.7,10.65529358]
[1745134557649,0.24539293,1590.8,1590.7,10.65529358]
[1745134558073,12.57203605,1590.9,1590.7,10.65529358]
[1745134558260,0.24539293,1590.8,1590.7,9.65472358]
[1745134558588,6.28596111,1590.9,1590.7,9.65472358]
[1745134558766,0.24539293,1590.8,1590.7,9.65472358]
[1745134559162,6.28596111,1590.9,1590.7,9.65472358]
[1745134559469,0.24539293,1590.8,1590.7,9.65472358]
[1745134559793,6.28596111,1590.9,1590.7,10.70246594]
[1745134559958,0.24539293,1590.8,1590.7,10.70246594]
[1745134560286,6.28552574,1591.0,1590.7,10.76532449]
[1745134560474,0.24539293,1590.8,1590.7,10.76532449]
[1745134560989,6.28552574,1591.0,1590.7,10.70246594]
[1745134561187,0.21086116,1590.8,1590.7,10.70246594]
[1745134561392,6.2857823,1590.9,1590.7,10.70246594]
[1745134561559,0.21086116,1590.8,1590.7,10.70246594]
[1745134561957,6.2857823,1590.9,1590.7,10.70246594]
[1745134562286,0.21086116,1590.8,1590.7,10.70246594]
[1745134562691,6.2857823,1590.9,1590.7,10.70246594]
[1745134562907,6.2857823,1590.9,1590.8,1.07024659]
[1745134563357,6.28614533,1590.8,1590.7,3.0]
[1745134563697,6.28614533,1590.8,1590.7,9.17]
[1745134564998,6.28602888,1590.9,1590.7,9.9945]
[1745134565158,6.28595375,1590.9,1590.7,9.9945]
[1745134565358,6.28614533,1590.8,1590.7,9.17]
[1745134565557,6.28594009,1590.9,1590.7,10.16945]
[1745134566591,6.28392883,1591.4,1590.9,1.88564536]
[1745134566592,6.28436478,1591.3,1590.9,1.88564536]
[1745134566759,6.06999998,1591.4,1590.8,3.88735844]
[1745134566760,6.28471247,1591.2,1590.8,5.71027901]
[1745134566960,6.28471247,1591.2,1590.9,0.5710279]
[1745134567607,0.15716227,1591.1,1590.9,0.5710279]
[1745134567963,6.28471247,1591.2,1590.9,0.5710279]
[1745134568182,0.15689863,1591.0,1590.9,0.5710279]
[1745134568360,6.28500467,1591.1,1590.9,0.5710279]
[1745134568559,0.15689863,1591.0,1590.9,0.5710279]
[1745134569405,7.05945969,1591.2,1590.9,0.5710279]
[1745134569605,0.15689863,1591.0,1590.9,0.5710279]
[1745134570197,6.28497577,1591.1,1590.9,0.5710279]
[1745134570198,7.05941553,1591.2,1590.9,0.633877]
[1745134570406,0.15689863,1591.0,1590.9,1.383877]
[1745134570562,6.28439876,1591.3,1591.0,3.0]
[1745134570761,6.28439876,1591.3,1591.1,6.169]
[1745134571300,6.28439876,1591.3,1591.2,3.0]
[1745134571301,6.28417017,1591.3,1591.2,3.0]
[1745134573332,12.35403488,1591.4,1591.2,3.0]
[1745134574548,7.07050798,1591.5,1591.2,3.0]
[1745134574691,6.28377554,1591.4,1591.2,3.0]
[1745134574892,6.28360798,1591.5,1591.2,3.0]
[1745134575091,6.28360798,1591.5,1591.2,4.84133828]
[1745134575324,6.283839,1591.4,1591.2,4.84133828]
[1745134575505,6.28417017,1591.3,1591.2,3.7848]
[1745134575717,6.283839,1591.4,1591.2,3.7848]
[1745134577070,6.28262916,1591.7,1591.3,2.67005105]
[1745134577239,6.28101249,1592.1,1591.4,3.0]
[1745134577240,6.28253881,1591.8,1591.4,3.0]
[1745134577440,6.28279151,1591.7,1591.6,3.0]
[1745134577758,6.28253881,1591.8,1591.6,3.0]
[1745134578127,7.04980301,1591.9,1591.6,3.0]
[1745134578128,7.04980301,1591.9,1591.6,3.7848]
[1745134578763,12.35072834,1592.2,1591.6,3.7848]
[1745134578764,7.04900315,1592.1,1591.6,5.66965278]
[1745134579065,6.2816828,1592.0,1591.6,5.66964885]
[1745134579278,13.33034578,1592.1,1591.8,3.0]
[1745134579431,13.33034578,1592.1,1591.7,2.51451497]
[1745134579432,6.28155962,1592.0,1591.9,6.168]
[1745134580131,7.04905197,1592.1,1591.9,6.168]
[1745134580565,6.28140703,1592.0,1591.9,6.168]
[1745134580758,6.28125197,1592.1,1591.9,6.168]
[1745134581141,6.28125197,1592.1,1591.9,6.9485]
[1745134581474,6.28088464,1592.2,1591.9,7.64335]
[1745134581876,6.28062159,1592.2,1591.9,7.64335]
[1745134582034,6.28047803,1592.3,1591.9,7.64335]
[1745134582241,6.45088589,1592.2,1591.9,7.64335]
[1745134582646,6.45103382,1592.2,1591.9,7.64335]
[1745134582932,0.17017051,1592.2,1591.9,7.64335]
[1745134583138,6.45092529,1592.2,1592.0,0.764335]
[1745134584076,0.17017051,1592.2,1592.0,3.82714271]
[1745134584297,6.45079659,1592.2,1592.0,3.764335]
[1745134584859,6.45079659,1592.2,1592.1,3.8096]
[1745134584860,0.17017051,1592.2,1592.1,3.8096]
[1745134585056,0.1,1592.4,1592.1,9.6500935]
[1745134585057,6.38004565,1592.4,1592.1,9.6500935]
[1745134585354,0.15793211,1592.3,1592.1,9.6500935]
[1745134585583,0.15793211,1592.3,1592.2,0.06279986]
[1745134585905,0.15793211,1592.3,1592.1,11.5343244]
[1745134586054,0.15793211,1592.3,1592.2,1.8841854]
[1745134586255,0.15793211,1592.3,1592.2,1.34185098]
[1745134586793,0.15793211,1592.3,1592.2,4.03563638]
[1745134587102,0.15793211,1592.3,1592.2,2.15145098]
[1745134589359,0.15793211,1592.3,1592.2,7.03563638]
[1745134589658,0.1,1592.4,1592.3,4.88406707]
[1745134589659,0.09920001,1592.4,1592.3,4.88406707]
[1745134589980,0.25909736,1592.4,1592.3,10.05697035]
[1745134591397,6.53892654,1592.4,1592.3,3.0]
[1745134591564,6.53892654,1592.4,1592.3,6.165]
[1745134591991,7.35822654,1592.4,1592.3,6.165]
[1745134592406,13.42822652,1592.4,1592.3,6.165]
[1745134592607,7.10031249,1592.1,1592.0,53.831]
[1745134592824,7.10031249,1592.1,1592.0,59.985]
[1745134593028,7.26468178,1592.1,1592.0,59.985]
[1745134595505,0.16436929,1592.1,1592.0,59.985]
[1745134595712,7.09882228,1592.3,1592.0,59.985]
[1745134595914,0.16463256,1592.2,1592.0,66.0302968]
[1745134596122,0.16463256,1592.2,1592.1,3.0]
[1745134596307,7.09882228,1592.3,1592.1,3.0]
[1745134596516,0.16463256,1592.2,1592.1,3.0]
[1745134596734,0.16463256,1592.2,1592.1,12.0762732]
[1745134597093,0.09920001,1592.4,1592.1,12.01346861]
[1745134597328,0.14638871,1592.3,1592.1,12.01338941]
[1745134597597,0.14638871,1592.3,1592.2,1.88417985]
[1745134597895,0.09920001,1592.4,1592.3,4.88406707]
[1745134598103,0.09920001,1592.4,1592.3,6.63419176]
[1745134598299,0.24585193,1592.4,1592.3,6.63419176]
[1745134598491,0.24585193,1592.4,1592.3,6.69697934]
[1745134598719,0.24585193,1592.4,1592.3,6.63419176]
[1745134599026,0.24585193,1592.4,1592.3,7.11373296]
[1745134599802,0.24585193,1592.4,1592.3,2.22966589]
[1745134600128,0.24585193,1592.4,1592.3,7.11373296]
[1745134600830,0.09920001,1592.4,1592.3,7.11373296]
[1745134601201,0.09920001,1592.4,1592.3,5.22966589]
[1745134601401,0.24585193,1592.4,1592.3,5.29245822]
[1745134602319,0.24585193,1592.4,1592.3,5.22966589]
[1745134602726,0.24585193,1592.4,1592.3,4.45636589]
[1745134602899,0.24585193,1592.4,1592.3,3.4795412]
[1745134603098,0.24585193,1592.4,1592.3,3.0]
[1745134603328,12.59584944,1592.4,1592.2,0.06279434]
[1745134603528,6.28041775,1592.3,1592.2,6.153]
[1745134604031,6.4297791,1592.3,1592.2,6.153]
[1745134604697,6.28101249,1592.1,1592.0,56.831]
[1745134604903,6.42984733,1592.1,1592.0,59.984]
[1745134605103,7.22884733,1592.1,1592.0,59.984]
[1745134608209,0.14883484,1592.1,1592.0,59.984]
[1745134608425,0.14883484,1592.1,1592.0,68.9824]
[1745134608731,6.28024061,1592.3,1592.1,3.0]
[1745134609119,6.28024061,1592.3,1592.1,3.06280256]
[1745134609435,6.28024061,1592.3,1592.1,3.0]
[1745134609732,6.28024061,1592.3,1592.1,3.06280256]
[1745134609935,6.28061801,1592.2,1592.1,9.35586487]
[1745134610229,6.28035821,1592.3,1592.1,9.35586487]
[1745134610433,12.449256,1592.4,1592.1,9.41866744]
[1745134610738,6.16919999,1592.4,1592.1,12.09136302]
[1745134610898,0.09920001,1592.4,1592.1,10.14426487]
[1745134611106,0.09920001,1592.4,1592.2,1.01442649]
[1745134611305,6.37903697,1592.4,1592.2,1.01442649]
[1745134611934,12.65916011,1592.4,1592.2,1.01442649]
[1745134612235,6.28022357,1592.3,1592.2,1.01442649]
[1745134612437,6.42601747,1592.3,1592.2,1.01442649]
[1745134613035,0.1457939,1592.3,1592.2,1.80282649]
[1745134613426,0.1457939,1592.3,1592.2,1.01442649]
[1745134614160,6.42601747,1592.3,1592.2,1.01442649]
[1745134614315,0.1457939,1592.3,1592.2,1.01442649]
[1745134615051,6.42601747,1592.3,1592.2,1.01442649]
[1745134615263,6.28022357,1592.3,1592.2,1.01442649]
[1745134615414,6.28061801,1592.2,1592.1,9.35586487]
[1745134615826,0.14671978,1592.2,1592.1,9.35586487]
[1745134616125,0.14671978,1592.2,1592.1,9.41866868]
[1745134617667,0.14671978,1592.2,1592.1,15.50886487]
[1745134618451,6.42733779,1592.2,1592.1,15.50886487]
[1745134619561,0.14671978,1592.2,1592.1,15.50886487]
[1745134620528,6.42733779,1592.2,1592.1,3.0]
[1745134620735,7.18263779,1592.2,1592.1,6.153]
[1745134620927,7.18263779,1592.2,1592.0,53.831]
[1745134620928,6.28101249,1592.1,1592.0,59.984]
[1745134621139,6.42950792,1592.1,1592.0,59.984]
[1745134621552,6.28259094,1591.7,1591.4,0.7555]
[1745134621869,6.28228161,1591.8,1591.6,3.0]
[1745134622274,6.28228161,1591.8,1591.5,6.67697172]
[1745134622551,6.28228161,1591.8,1591.6,3.0]
[1745134622919,6.28227104,1591.8,1591.6,3.0]
[1745134623326,6.28227104,1591.8,1591.6,3.96769717]
[1745134625559,6.28227104,1591.8,1591.6,0.96769717]
[1745134625961,12.56481404,1591.8,1591.6,0.96769717]
[1745134626253,6.28259094,1591.7,1591.6,0.96769717]
[1745134626624,6.28259094,1591.7,1591.6,3.96769717]
[1745134627430,6.42850403,1591.7,1591.6,3.96769717]
[1745134629955,0.14591309,1591.7,1591.6,3.96769717]
[1745134630135,6.28225293,1591.8,1591.6,3.96769717]
[1745134630335,0.14591309,1591.7,1591.6,3.96769717]
[1745134639145,6.28517788,1591.1,1590.7,2.66772151]
[1745134639346,0.13667617,1591.0,1590.9,6.145]
[1745134639545,6.28499412,1591.1,1590.9,6.145]
[1745134639740,6.28481077,1591.2,1591.0,3.6145]
[1745134640065,0.13608983,1591.1,1591.0,3.6145]
[1745134640367,13.18524911,1591.3,1591.0,4.4121]
[1745134640668,0.13608983,1591.1,1591.0,4.4121]
[1745134640965,6.28276398,1591.7,1591.3,3.7976]
[1745134641263,6.28313282,1591.6,1591.4,6.145]
[1745134642078,6.2826257,1591.7,1591.4,6.145]
[1745134642239,6.28300191,1591.6,1591.4,6.2078297]
[1745134642435,6.46010866,1591.6,1591.4,6.145]
[1745134642972,0.17710675,1591.6,1591.4,6.20782989]
[1745134643143,0.17710675,1591.6,1591.4,6.96520257]
[1745134643470,7.03270247,1591.8,1591.4,8.7874971]
[1745134643679,0.17671155,1591.5,1591.4,11.7874971]
[1745134643854,6.28240247,1591.8,1591.4,11.7874971]
[1745134644056,0.17671155,1591.5,1591.4,11.7874971]
[1745134644278,6.28240247,1591.8,1591.4,11.7874971]
[1745134644579,6.28240247,1591.8,1591.5,3.0]
[1745134644872,7.03139433,1592.1,1591.7,4.88477104]
[1745134645172,6.28156638,1592.0,1591.9,3.0]
[1745134645372,6.28121811,1592.1,1591.9,3.0]
[1745134645966,6.28140703,1592.0,1591.9,3.0]
[1745134646144,6.28126134,1592.1,1591.9,3.0]
[1745134646475,12.56263736,1592.1,1591.9,3.0]
[1745134646871,6.28140703,1592.0,1591.9,3.0]
[1745134647082,12.56259495,1592.1,1591.9,3.0]
[1745134647381,6.28126134,1592.1,1591.9,3.0]
[1745134647584,12.56260301,1592.1,1591.9,3.0]
[1745134648096,6.28140703,1592.0,1591.9,3.0]
[1745134649358,12.56259769,1592.1,1591.9,3.0]
[1745134649594,6.28126134,1592.1,1591.9,3.0]
[1745134649894,6.28126134,1592.1,1591.9,3.7972]
[1745134650489,6.28101927,1592.1,1591.9,3.7972]
[1745134650659,6.28140703,1592.0,1591.9,3.0]
[1745134651257,12.35080055,1592.2,1591.9,3.92078139]
[1745134651479,6.06999998,1592.2,1591.9,6.27883149]
[1745134651729,6.37919202,1592.4,1592.0,0.86000843]
[1745134651889,0.09920001,1592.4,1592.1,4.8842273]
[1745134652095,0.09920001,1592.4,1592.3,3.0]
[1745134652667,6.37902919,1592.4,1592.3,3.0]
[1745134654490,6.37902919,1592.4,1592.3,4.7117]
[1745134654491,0.09920001,1592.4,1592.3,4.7117]
[1745134654692,0.09920001,1592.4,1592.3,3.7972]
[1745134655671,0.09920001,1592.4,1592.3,3.85999371]
[1745134656901,0.09920001,1592.4,1592.3,4.32624792]
[1745134657474,0.23375481,1592.4,1592.3,4.32624792]
[1745134657697,0.09920001,1592.4,1592.3,4.32624792]
[1745134657902,0.23375481,1592.4,1592.3,5.56179103]
[1745134658074,0.09920001,1592.4,1592.3,5.49899732]
[1745134658606,0.23375481,1592.4,1592.3,5.49899732]
[1745134659192,0.23375481,1592.4,1592.3,4.26345421]
[1745134659398,0.23375481,1592.4,1592.3,3.7972]
[1745134659697,6.51358399,1592.4,1592.3,3.0]
[1745134660006,6.51358399,1592.4,1592.2,6.9116]
[1745134660007,6.28022357,1592.3,1592.2,6.145]
[1745134660507,6.41553524,1592.3,1592.2,9.133]
[1745134661603,0.13531167,1592.3,1592.2,9.133]
[1745134662205,6.41553524,1592.3,1592.2,9.133]
[1745134662889,0.13531167,1592.3,1592.2,9.133]
[1745134664309,0.13531167,1592.3,1592.2,9.8996]
[1745134664880,0.13531167,1592.3,1592.2,9.96239507]
[1745134665076,0.13531167,1592.3,1592.2,11.33547991]
[1745134665414,0.13531167,1592.3,1592.2,11.27268484]
[1745134665614,0.13531167,1592.3,1592.2,9.133]
[1745134665801,6.41553524,1592.3,1592.2,9.133]
[1745134666620,0.13531167,1592.3,1592.2,9.133]
[1745134667188,6.41553524,1592.3,1592.2,9.133]
[1745134667613,0.13531167,1592.3,1592.2,9.133]
[1745134668199,0.13531167,1592.3,1592.2,12.70336564]
[1745134668816,0.13531167,1592.3,1592.2,10.81918024]
[1745134669017,0.09920001,1592.4,1592.2,10.81918024]
[1745134669177,0.09920001,1592.4,1592.3,0.06279487]
[1745134670884,0.09920001,1592.4,1592.2,12.70335132]
[1745134671084,0.09920001,1592.4,1592.3,1.27033513]
[1745134671983,0.09920001,1592.4,1592.3,1.33312769]
[1745134672710,0.09920001,1592.4,1592.3,1.27033513]
[1745134672890,0.09920001,1592.4,1592.3,1.75182554]
[1745134673092,0.09920001,1592.4,1592.3,1.81461699]
[1745134673291,0.09920001,1592.4,1592.3,3.69868406]
[1745134673703,0.09920001,1592.4,1592.3,6.63589261]
[1745134673906,0.09920001,1592.4,1592.3,7.41069261]
[1745134674290,0.09920001,1592.4,1592.3,5.52662554]
[1745134674887,0.09920001,1592.4,1592.3,4.75182554]
[1745134675083,0.09920001,1592.4,1592.3,3.0]
[1745134675409,6.37902919,1592.4,1592.3,3.0]
[1745134675819,0.09920001,1592.4,1592.3,3.0]
[1745134676618,6.37902919,1592.4,1592.3,3.0]
[1745134676794,0.09920001,1592.4,1592.3,3.0]
[1745134679813,0.33431014,1592.4,1592.3,3.0]
[1745134680019,6.61413932,1592.4,1592.3,3.0]
[1745134680184,0.33431014,1592.4,1592.3,3.0]
[1745134680819,6.61413932,1592.4,1592.3,3.0]
[1745134681478,0.33431014,1592.4,1592.3,9.132]
[1745134682084,6.61413932,1592.4,1592.3,9.132]
[1745134682822,0.33431014,1592.4,1592.3,9.132]
[1745134683509,6.61413932,1592.4,1592.3,9.132]
[1745134684799,6.61413932,1592.4,1592.3,6.132]
[1745134689803,0.33431014,1592.4,1592.3,6.132]
[1745134690104,6.61413932,1592.4,1592.3,6.132]
[1745134691216,6.61413932,1592.4,1592.3,9.132]
[1745134693833,0.33431014,1592.4,1592.3,9.132]
[1745134694360,6.61413932,1592.4,1592.3,9.132]
[1745134694858,6.37902919,1592.4,1592.3,9.132]
[1745134695154,0.09920001,1592.4,1592.3,9.9248]
[1745134695345,0.09920001,1592.4,1592.3,10.838]
[1745134695719,0.09920001,1592.4,1592.3,12.72206707]
[1745134698763,0.09920001,1592.4,1592.3,13.18461778]
[1745134699738,0.09920001,1592.4,1592.3,11.30055071]
[1745134699963,0.09920001,1592.4,1592.3,13.2474075]
[1745134700131,0.09920001,1592.4,1592.3,13.18461778]
[1745134701044,0.09920001,1592.4,1592.3,11.30055071]
[1745134701237,0.09920001,1592.4,1592.3,10.38735071]
[1745134701688,0.09920001,1592.4,1592.3,3.46255071]
[1745134701835,6.37902919,1592.4,1592.3,9.122]
[1745134703134,7.16262919,1592.4,1592.3,9.122]
[1745134703454,0.88280001,1592.4,1592.3,9.122]
[1745134703859,7.16262919,1592.4,1592.3,9.122]
[1745134704227,0.09920001,1592.4,1592.3,9.122]
[1745134705180,6.37902919,1592.4,1592.3,9.122]
[1745134709176,6.37902919,1592.4,1592.3,6.122]
[1745134709375,7.16262919,1592.4,1592.3,6.122]
[1745134711907,6.37902919,1592.4,1592.3,6.122]
[1745134712979,0.09920001,1592.4,1592.3,9.8723]
[1745134713193,0.09920001,1592.4,1592.3,9.122]
[1745134714179,0.09920001,1592.4,1592.3,9.58253332]
[1745134714380,6.3653557,1592.4,1592.3,10.54078665]
[1745134714579,6.3653557,1592.4,1592.3,9.58253332]
[1745134716110,6.3653557,1592.4,1592.3,9.122]
[1745134716611,7.20737037,1592.4,1592.2,6.111]
[1745134716819,7.05923358,1592.3,1592.2,6.111]
[1745134717000,13.12923356,1592.3,1592.2,6.111]
[1745134717311,6.28140703,1592.0,1591.9,53.805]
[1745134717617,7.12323273,1592.0,1591.9,59.916]
[1745134718016,7.06040703,1592.0,1591.9,59.916]
[1745134718992,7.12323273,1592.0,1591.9,59.916]
[1745134722323,13.19323271,1592.0,1591.9,59.916]
[1745134722516,13.13040701,1592.0,1591.9,59.916]
[1745134729245,13.13040701,1592.0,1591.9,53.805]
[1745134738759,6.28180162,1591.9,1591.8,6.113]
[1745134738961,6.34462732,1591.9,1591.8,6.113]
[1745134740262,6.28180162,1591.9,1591.8,6.113]
[1745134740451,12.35140701,1592.0,1591.8,6.8688]
[1745134740654,12.35140701,1592.0,1591.8,7.55568]
[1745134740965,6.34462732,1591.9,1591.8,6.8688]
[1745134741268,6.28259094,1591.7,1591.5,6.114]
[1745134741574,6.34581137,1591.6,1591.5,6.114]
[1745134741778,13.21781135,1591.6,1591.5,6.114]
[1745134742011,6.28377529,1591.4,1591.3,56.825]
[1745134742201,6.28377529,1591.4,1591.3,65.72065809]
[1745134743686,6.28345676,1591.5,1591.4,3.0]
[1745134743887,6.06999998,1591.6,1591.5,0.7558]
[1745134744097,6.2815427,1592.0,1591.5,1.88501413]
[1745134744406,6.28192444,1591.9,1591.6,3.0]
[1745134744583,6.28192444,1591.9,1591.7,6.8824]
[1745134744776,6.28192444,1591.9,1591.7,7.87064]
[1745134745307,6.28160503,1592.0,1591.7,7.87064]
[1745134746380,6.28180162,1591.9,1591.8,3.0]
[1745134746722,6.28160503,1592.0,1591.8,3.0]
[1745134747205,6.28180162,1591.9,1591.8,3.0]
[1745134748317,12.35116528,1592.1,1591.9,0.7684]
[1745134748821,6.36537765,1592.4,1591.9,0.7684]
[1745134748979,6.28076605,1592.2,1591.9,0.7684]
[1745134749381,6.36538026,1592.4,1591.9,0.7684]
[1745134749382,6.28140703,1592.0,1591.9,0.7684]
[1745134749993,6.28127685,1592.1,1591.9,0.7684]
[1745134750282,6.28127685,1592.1,1591.9,1.26502878]
[1745134751814,12.56257052,1592.1,1591.9,1.26502878]
[1745134752313,6.28127685,1592.1,1591.9,1.26502878]
[1745134753111,6.28140703,1592.0,1591.9,1.26502878]
[1745134753317,6.28127685,1592.1,1591.9,1.26502878]
[1745134753918,12.56259264,1592.1,1591.9,1.26502878]
[1745134754117,6.28127685,1592.1,1591.9,1.26502878]
[1745134754615,6.28080087,1592.2,1591.9,1.26502878]
[1745134754792,12.35039842,1592.3,1592.0,3.8043]
[1745134755002,6.2809698,1592.2,1592.1,6.102]
[1745134755519,6.3437955,1592.2,1592.1,6.102]
[1745134755984,6.28140703,1592.0,1591.8,0.8043]
[1745134756184,6.34423273,1592.0,1591.9,9.101]
[1745134756382,6.28140703,1592.0,1591.9,9.101]
[1745134756582,6.34423273,1592.0,1591.9,9.101]
[1745134756900,6.28140703,1592.0,1591.9,6.101]
[1745134757217,12.56248903,1592.1,1591.9,6.101]
[1745134757422,12.56248903,1592.1,1591.9,6.7111]
[1745134757723,6.28140703,1592.0,1591.9,10.5154]
[1745134757925,6.28081487,1592.2,1591.9,10.5154]
[1745134758132,6.28081487,1592.2,1591.9,10.57820804]
[1745134758344,6.28081487,1592.2,1592.0,1.0578208]
[1745134759831,6.28101249,1592.1,1592.0,3.0]
[1745134760013,6.34383819,1592.1,1592.0,3.0]
[1745134760220,6.28180162,1591.9,1591.8,0.8043]
[1745134760391,6.28229768,1591.8,1591.6,3.8043]
[1745134760593,6.28229768,1591.8,1591.7,6.101]
[1745134760803,6.2815939,1592.0,1591.8,3.0]